[Event "OBEM 2018"]
[Site "Bremen"]
[Date "2018.03.29"]
[Round "7.1"]
[White "Mueller, Wolfgang"]
[Black "Margraf, Daniel"]
[Result "0-1"]
[ECO "B28"]
[WhiteElo "2023"]
[BlackElo "2200"]
[Annotator "NA"]
[PlyCount "82"]
[EventDate "2018.??.??"]
[EventType "swiss"]
[EventCountry "GER"]
[SourceTitle "playchess.com"]
[Source "ChessBase"]
[SourceQuality "1"]
[TimeControl "40/5400+30:1800+30"]

1. e4 c5 {[%emt 0:14:43]} 2. Nf3 {[%emt 0:00:17]} a6 {[%emt 0:00:39]} 3. d4 {[%emt 0:01:29]} cxd4 {[%emt 0:01:11]} 4. Nxd4 {[%emt 0:00:10]} e5 {[%emt 0:02:12]} 5. Nb3 {[%emt 0:05:59]} Nf6 {[%emt 0:03:11]} 6. Qd3 {[%emt 0:13:58]} Nc6 {[%emt 0:06:51]} 7. c3 {[%emt 0:02:51]} d5 {[%emt 0:02:30]} 8. exd5 {[%emt 0:06:05]} Nxd5 {[%emt 0:07:52]} 9. g3 {[%emt 0:01:24]} Be6 {[%emt 0:03:38]} 10. Bg2 {[%emt 0:02:34]} a5 {[%emt 0:04:55]} 11. Na3 {[%emt 0:13:42]} a4 {[%emt 0:04:09]} 12. Nd2 {[%emt 0:00:20]} Be7 {[%emt 0:02:48]} 13. O-O {[%emt 0:01:49]} O-O {[%emt 0:00:19]} 14. Ndc4 {[%emt 0:02:27]} Bc5 {[%emt 0:03:19]} 15. Bxd5 {[%emt 0:10:40]} Qxd5 {[%emt 0:05:30]} 16. Qxd5 {[%emt 0:02:26]} Bxd5 {[%emt 0:00:08]} 17. Be3 {[%emt 0:00:55]} Bxe3 {[%emt 0:02:28]} 18. Nxe3 {[%emt 0:02:04]} Bf3 {[%emt 0:00:26]} 19. Rfe1 {[%emt 0:03:16]} Rfd8 {[%emt 0:03:09]} 20. Nec4 {[%emt 0:03:15]} f6 {[%emt 0:04:48]} 21. Nb6 {[%emt 0:05:58]} Ra6 {[%emt 0:04:03]} 22. Nac4 {[%emt 0:02:25]} Na5 {[%emt 0:01:19]} 23. Nxa5 {[%emt 0:03:37]} Rxa5 {[%emt 0:01:42]} 24. b4 {[%emt 0:01:53]} axb3 {[%emt 0:01:36]} 25. axb3 {[%emt 0:00:44]} Rb5 {[%emt 0:00:21]} 26. Na4 {[%emt 0:07:00]} Rxb3 {[%emt 0:00:45]} 27. Rab1 {[%emt 0:01:52]} Rxb1 {[%emt 0:04:47]} 28. Rxb1 {[%emt 0:00:05]} Rc8 {[%emt 0:05:30]} 29. Rc1 {[%emt 0:02:56]} b5 {[%emt 0:01:17]} 30. Nb2 {[%emt 0:00:01]} Rd8 {[%emt 0:00:23]} 31. c4 {[%emt 0:01:48]} Rd2 {[%emt 0:00:43]} 32. Rb1 {[%emt 0:00:17]} Be4 {[%emt 0:01:22]} 33. Re1 {[%emt 0:00:02]} Bg6 {[%emt 0:01:52]} 34. Nd1 {[%emt 0:00:02]} bxc4 {[%emt 0:00:37]} 35. Ne3 {[%emt 0:00:02]} c3 {[%emt 0:00:52]} 36. Rc1 {[%emt 0:00:01]} c2 {[%emt 0:00:22]} 37. g4 {[%emt 0:02:05]} Be4 {[%emt 0:01:34]} 38. Re1 {[%emt 0:01:17]} g6 {[%emt 0:01:56]} 39. h4 {[%emt 0:00:01]} Kf7 {[%emt 0:00:32]} 40. Ra1 {[%emt 0:00:17]} Bf3 {[%emt 0:30:47]} 41. Re1 {[%emt 0:30:43]} Bd1 {[%emt 0:00:48]} 0-1

[Event "OBEM 2018"]
[Site "Bremen"]
[Date "2018.03.29"]
[Round "7.2"]
[White "Issing, Peter"]
[Black "Boehning, Kilian"]
[Result "1-0"]
[ECO "A82"]
[WhiteElo "2196"]
[BlackElo "2109"]
[Annotator "NA RC"]
[PlyCount "108"]
[EventDate "2018.??.??"]
[EventType "swiss"]
[EventCountry "GER"]
[SourceTitle "playchess.com"]
[Source "ChessBase"]
[SourceQuality "1"]
[TimeControl "40/5400+30:1800+30"]

1. d4 {[%emt 0:00:00]} f5 {[%emt 0:00:22]} 2. e4 {[%emt 0:00:00]} fxe4 {[%emt 0:00:49]} 3. Nc3 {[%emt 0:00:24]} g6 {[%emt 0:00:41]} 4. Nxe4 {[%emt 0:00:46]} Bg7 {[%emt 0:00:06]} 5. Nf3 {[%emt 0:01:40]} Nf6 {[%emt 0:00:26] A82: Dutch Defence: Staunton Gambit} (5... d5 6. Nc5 b6 7. Nd3 Nf6 8. Be2 c5 9. dxc5 bxc5 10. c4 O-O 11. O-O Na6 12. cxd5 Qxd5 13. Nde5 e6 14. Qa4 Nc7 15. Be3 Ne4 16. Nc6 {1-0 (16) Atalik,S (2545)-Ugrcic,Z (2030) Belgrade 2017}) 6. Ng3 {[%emt 0:09:30]} d5 {[%emt 0:02:44]} 7. Bd3 {[%emt 0:03:10]} Nc6 $146 {[%emt 0:02:18]} ({Find the theoretical novelty and annotate with similar games:} 7... O-O 8. Bg5 Bg4 9. Be2 Ne4 10. Be3 Nxg3 11. hxg3 Nd7 12. Ng5 Bxe2 13. Qxe2 {1-0 (28) Saftenberger,W (1746)-Guensch,H (1767) Moembris 2003}) 8. h3 {[%emt 0:11:19]} Qd6 {[%emt 0:03:03]} 9. O-O {[%emt 0:04:30]} Bd7 {[%emt 0:05:24]} 10. c3 {[%emt 0:04:48]} O-O-O {[%emt 0:06:54]} 11. b4 {[%emt 0:01:42]} e5 {[%emt 0:09:23]} 12. b5 {[%emt 0:06:02]} e4 {[%emt 0:01:52]} 13. bxc6 {[%emt 0:00:54]} Bxc6 {[%emt 0:00:12]} 14. Ne5 {[%emt 0:01:25]} exd3 {[%emt 0:01:11]} 15. Nf7 {[%emt 0:03:52]} Qd7 {[%emt 0:01:35]} 16. Nxd8 {[%emt 0:00:36]} Kxd8 {[%emt 0:03:07]} 17. Re1 {[%emt 0:01:51]} Bb5 {[%emt 0:00:40]} 18. Bf4 {[%emt 0:03:37]} Rf8 {[%emt 0:04:26]} 19. Qd2 {[%emt 0:02:41]} Kc8 {[%emt 0:18:09]} 20. Bg5 {[%emt 0:03:16]} Ng8 {[%emt 0:02:03]} 21. Nf1 {[%emt 0:01:58]} Qf5 {[%emt 0:03:25]} 22. Nh2 {[%emt 0:01:46]} h6 {[%emt 0:02:04]} 23. Be3 {[%emt 0:00:26]} Nf6 {[%emt 0:02:10]} 24. f3 {[%emt 0:01:10]} Ne8 {[%emt 0:10:02]} 25. Bxh6 {[%emt 0:03:01]} Bxh6 {[%emt 0:03:03]} 26. Qxh6 {[%emt 0:00:01]} Nd6 {[%emt 0:03:12]} 27. Nf1 {[%emt 0:02:37]} Qf6 {[%emt 0:03:25]} 28. Re6 {[%emt 0:04:30]} Qxe6 {[%emt 0:02:20]} 29. Qxf8+ {[%emt 0:00:12]} Kd7 {[%emt 0:00:08]} 30. a4 {[%emt 0:07:27]} Bxa4 {[%emt 0:02:41]} 31. Rxa4 {[%emt 0:02:06]} d2 {[%emt 0:00:08]} 32. Nxd2 {[%emt 0:01:53]} Qe3+ {[%emt 0:00:28]} 33. Kh2 {[%emt 0:01:59]} Qxd2 {[%emt 0:00:02]} 34. Qg7+ {[%emt 0:02:34]} Kc6 {[%emt 0:00:05]} 35. Qf6 {[%emt 0:02:05]} Qxc3 {[%emt 0:00:51]} 36. Rxa7 {[%emt 0:01:30]} Qd3 {[%emt 0:01:07]} 37. Ra5 {[%emt 0:02:44]} b6 {[%emt 0:01:20]} 38. Ra7 {[%emt 0:00:13]} Qf5 {[%emt 0:00:23]} 39. Qe5 {[%emt 0:03:23]} Qf7 {[%emt 0:00:46]} 40. Ra8 {[%emt 0:02:49]} Nc4 {[%emt 0:32:11]} 41. Qe8+ {[%emt 0:32:20]} Qxe8 {[%emt 0:05:02]} 42. Rxe8 {[%emt 0:00:07]} b5 {[%emt 0:00:00]} 43. Re6+ {[%emt 0:00:00]} Nd6 {[%emt 0:00:00]} 44. Rxg6 {[%emt 0:00:00]} b4 {[%emt 0:00:00]} 45. Re6 {[%emt 0:00:00]} Kb5 {[%emt 0:00:00]} 46. h4 {[%emt 0:00:00]} b3 {[%emt 0:00:00]} 47. Re1 {[%emt 0:00:00]} c5 {[%emt 0:00:00]} 48. dxc5 {[%emt 0:00:00]} Kxc5 {[%emt 0:00:00]} 49. h5 {[%emt 0:00:00]} d4 {[%emt 0:00:00]} 50. h6 {[%emt 0:00:00]} d3 {[%emt 0:00:00]} 51. h7 {[%emt 0:00:00]} Nf7 {[%emt 0:00:00]} 52. Re7 {[%emt 0:00:00]} Nh8 {[%emt 0:00:00]} 53. Re8 {[%emt 0:00:00]} Ng6 {[%emt 0:00:00]} 54. Rg8 {[%emt 0:00:00]} Kd5 1-0

[Event "OBEM 2018"]
[Site "Bremen"]
[Date "2018.03.29"]
[Round "7.4"]
[White "Kardoeus, David"]
[Black "Bart, Semjon"]
[Result "1-0"]
[ECO "C45"]
[WhiteElo "2229"]
[BlackElo "2062"]
[Annotator "NA RC"]
[PlyCount "99"]
[EventDate "2018.??.??"]
[EventType "swiss"]
[EventCountry "GER"]
[SourceTitle "playchess.com"]
[Source "ChessBase"]
[SourceQuality "1"]
[TimeControl "40/5400+30:1800+30"]

1. e4 {[%emt 0:18:52]} e5 {[%emt 0:00:07]} 2. Nf3 {[%emt 0:00:23]} Nc6 {[%emt 0:00:06]} 3. d4 {[%emt 0:00:34]} exd4 {[%emt 0:00:21]} 4. Nxd4 {[%emt 0:00:32]} Nf6 {[%emt 0:02:01]} 5. Nxc6 {[%emt 0:00:20]} bxc6 {[%emt 0:00:10]} 6. e5 {[%emt 0:00:14]} Ne4 {[%emt 0:13:14]} 7. Nd2 {[%emt 0:00:10]} Nc5 {[%emt 0:15:05] C45: Scotch Game} (7... Nxd2 8. Bxd2 d5 9. Bd3 Qh4 10. O-O Bc5 11. c4 O-O 12. Rc1 Bd4 13. Bc3 Bxc3 14. Rxc3 Be6 15. f4 {1-0 (55) Vallejo Pons,F (2679)-Kortschnoj,V (2568) Vera 2004}) 8. Be2 {[%emt 0:01:57]} d6 {[%emt 0:01:22]} 9. exd6 {[%emt 0:15:23]} cxd6 {[%emt 0:00:33]} 10. O-O {[%emt 0:01:05]} Be7 {[%emt 0:04:28]} 11. Nb3 {[%emt 0:03:26]} Ne6 {[%emt 0:05:42]} 12. Bf3 {[%emt 0:08:39]} Bd7 {[%emt 0:02:34]} 13. Nd4 {[%emt 0:03:43]} Nxd4 {[%emt 0:01:41]} 14. Qxd4 {[%emt 0:00:11]} O-O {[%emt 0:01:46]} 15. Bf4 {[%emt 0:00:27] [#]} d5 $146 {[%emt 0:02:52]} 16. Rfe1 {[%emt 0:07:34]} Bf6 {[%emt 0:05:22]} 17. Be5 {[%emt 0:00:29]} Bxe5 {[%emt 0:01:06]} 18. Qxe5 {[%emt 0:03:40]} Be6 {[%emt 0:09:59]} 19. c4 {[%emt 0:06:32]} dxc4 {[%emt 0:04:39]} 20. Bxc6 {[%emt 0:09:11]} Rb8 {[%emt 0:00:06]} 21. Bf3 {[%emt 0:01:32]} Qb6 {[%emt 0:01:06]} 22. Re2 {[%emt 0:00:41]} Rfd8 {[%emt 0:01:50]} 23. h3 {[%emt 0:02:26]} Qb5 {[%emt 0:03:59]} 24. Qe3 {[%emt 0:03:53]} a5 {[%emt 0:01:21]} 25. Rc1 {[%emt 0:02:24]} Rd3 {[%emt 0:01:30]} 26. Qf4 {[%emt 0:00:06]} Rbd8 {[%emt 0:02:53]} 27. Bg4 {[%emt 0:02:40]} R3d4 {[%emt 0:08:39]} 28. Qe5 {[%emt 0:00:46]} Qxe5 {[%emt 0:05:26]} 29. Rxe5 {[%emt 0:00:07]} Bxg4 {[%emt 0:00:19]} 30. hxg4 {[%emt 0:00:08]} Rxg4 {[%emt 0:01:08]} 31. Rxa5 {[%emt 0:00:38]} g6 {[%emt 0:01:00]} 32. Rc2 {[%emt 0:01:30]} Rd1+ {[%emt 0:00:52]} 33. Kh2 {[%emt 0:00:10]} h5 {[%emt 0:00:14]} 34. f3 {[%emt 0:02:20]} Rh4+ {[%emt 0:00:29]} 35. Kg3 {[%emt 0:00:08]} Rhd4 {[%emt 0:00:04]} 36. Rc5 {[%emt 0:00:35]} Rf1 {[%emt 0:01:31]} 37. R5xc4 {[%emt 0:00:52]} h4+ {[%emt 0:00:46]} 38. Kh2 {[%emt 0:00:06]} Rdd1 {[%emt 0:01:36]} (38... Rxc4 {was worth a try.} 39. Rxc4 Rb1) 39. Rxh4 {[%emt 0:00:13]} Ra1 {[%emt 0:00:15]} 40. a3 {[%emt 0:00:41]} Kg7 {[%emt 0:30:24]} 41. Kg3 {[%emt 0:32:20]} g5 {[%emt 0:00:10]} 42. Rb4 {[%emt 0:01:23]} Ra2 {[%emt 0:01:26]} 43. Kg4 {[%emt 0:01:40]} Kg6 {[%emt 0:00:43]} 44. Rb6+ {[%emt 0:00:16]} f6 {[%emt 0:00:07]} 45. Rcc6 {[%emt 0:00:00]} Rf2 {[%emt 0:00:00]} 46. Rxf6+ {[%emt 0:00:00]} Kg7 {[%emt 0:00:00]} 47. g3 {[%emt 0:00:00]} Raxb2 {[%emt 0:00:00]} 48. Rg6+ {[%emt 0:00:00]} Kf7 {[%emt 0:00:00]} 49. Rxb2 {[%emt 0:00:00]} Rxb2 {[%emt 0:00:00]} 50. Rxg5 $18 {[%emt 0:00:00]} 1-0

[Event "OBEM 2018"]
[Site "Bremen"]
[Date "2018.03.30"]
[Round "8"]
[White "Margraf, Daniel"]
[Black "Kardoeus, David"]
[Result "1/2-1/2"]
[ECO "C42"]
[WhiteElo "2200"]
[BlackElo "2229"]
[Annotator "NA RC"]
[PlyCount "77"]
[EventDate "2018.??.??"]
[EventType "swiss"]
[EventCountry "GER"]
[SourceTitle "playchess.com"]
[Source "ChessBase"]
[SourceQuality "1"]
[TimeControl "40/5400+30:1800+30"]

{[%evp 8,63,44,18,16,32767,32767,32767,32767,2,16,17,32767,32767,63,43,33,18,0,-6,-9,-51,-11,-2,-7,-19,0,16,57,60,52,24,51,39,32767,44,63,54,71,31,33,0,32767,32767,32767,32767,32767,0,0,32767,32767,32767,32767,32767,0,0,0,0]} 1. e4 {[%emt 0:00:00]} e5 {[%emt 0:00:18]} 2. Nf3 {[%emt 0:00:21]} Nf6 {[%emt 0:00:18]} 3. Nxe5 {[%emt 0:02:14]} d6 {[%emt 0:00:10]} 4. Nf3 {[%emt 0:00:11]} Nxe4 {[%emt 0:00:12]} 5. Nc3 {[%emt 0:00:31]} Nxc3 {[%emt 0:00:09]} 6. dxc3 {[%emt 0:00:10]} Nc6 {[%emt 0:00:26]} 7. Bd3 {[%emt 0:02:42]} Be7 {[%emt 0:01:10]} 8. Bf4 {[%emt 0:05:07] C42: Petroff Defence: 3 Nxe5 and unusual White 3rd moves} Be6 {[%emt 0:09:30] LiveBook: 7 Games} 9. Nd4 {[%emt 0:05:37]} (9. Qe2 Qd7 10. O-O-O Bf5 11. Bb5 Qe6 12. Rhe1 Qxe2 13. Rxe2 Kf8 14. Rde1 Bf6 {½-½ (48) Jaracz,P (2565)-Fridman,D (2661) Aix les Bains 2011}) 9... Nxd4 {[%emt 0:07:53]} 10. cxd4 {[%emt 0:00:10]} g5 $146 {[%emt 0:05:43]} ({Find the theoretical novelty and annotate with similar games:} 10... Bg5 11. Qf3 c6 12. O-O Qf6 13. Bxg5 Qxg5 14. Rfe1 O-O-O {½-½ (30) Kostal,J (2384)-Nejtek,J (2370) ICCF 2005}) 11. Bd2 {[%emt 0:04:22]} Qd7 {[%emt 0:04:38]} 12. Qe2 {[%emt 0:16:59]} O-O-O {[%emt 0:06:22]} 13. Bb5 {[%emt 0:02:03]} c6 {[%emt 0:05:56]} 14. Bd3 {[%emt 0:02:38]} Bf6 {[%emt 0:11:07]} 15. Be3 {[%emt 0:04:57]} Rde8 {[%emt 0:01:39]} 16. O-O {[%emt 0:05:23]} Bd8 {[%emt 0:09:26]} 17. Qd2 {[%emt 0:02:25]} Bd5 {[%emt 0:06:22] [#]} ({Black should try} 17... Rhg8 $11) 18. f3 $1 {[%emt 0:04:53]} f6 {[%emt 0:03:47]} 19. c4 {[%emt 0:02:00]} Bf7 {[%emt 0:02:42]} 20. f4 {[%emt 0:03:45]} h6 {[%emt 0:05:33]} 21. Rae1 {[%emt 0:04:03]} d5 {[%emt 0:01:58] [#]} 22. c5 $1 {[%emt 0:01:23]} Bc7 {[%emt 0:02:57]} 23. Qc2 {[%emt 0:04:02]} Kb8 {[%emt 0:00:24]} 24. b4 {[%emt 0:02:09]} gxf4 {[%emt 0:01:03]} 25. Bf5 {[%emt 0:05:45]} Be6 {[%emt 0:00:54]} 26. Bxf4 {[%emt 0:03:54]} Bxf4 {[%emt 0:05:45]} 27. Rxf4 {[%emt 0:03:01]} Bxf5 {[%emt 0:00:04]} 28. Rxe8+ {[%emt 0:00:11]} Rxe8 {[%emt 0:00:06]} 29. Rxf5 {[%emt 0:02:33]} Re1+ {[%emt 0:00:29]} 30. Rf1 {[%emt 0:00:13]} Qe6 {[%emt 0:03:31]} 31. Qf2 {[%emt 0:01:52]} Rxf1+ {[%emt 0:01:14]} 32. Kxf1 $11 {[%emt 0:00:08]} f5 {[%emt 0:03:13]} 33. Qg3+ {[%emt 0:00:38]} Kc8 {[%emt 0:00:01]} 34. Qg7 {[%emt 0:00:23]} Qe4 {[%emt 0:00:21]} 35. Qf8+ {[%emt 0:03:13]} Kc7 {[%emt 0:00:04]} 36. Qd6+ {[%emt 0:00:50]} Kc8 {[%emt 0:00:02]} 37. Qf8+ {[%emt 0:00:05]} Kc7 {[%emt 0:00:08]} 38. Qg7+ {[%emt 0:01:07]} Kc8 {[%emt 0:00:06]} 39. Qf8+ {[%emt 0:01:53]} 1/2-1/2

[Event "OBEM 2018"]
[Site "Bremen"]
[Date "2018.03.30"]
[Round "8"]
[White "Mueller, Wolfgang"]
[Black "Issing, Peter"]
[Result "1-0"]
[ECO "B47"]
[WhiteElo "2023"]
[BlackElo "2196"]
[Annotator "NA RC"]
[PlyCount "71"]
[EventDate "2018.??.??"]
[EventType "swiss"]
[EventCountry "GER"]
[SourceTitle "playchess.com"]
[Source "ChessBase"]
[SourceQuality "1"]
[TimeControl "40/5400+30:1800+30"]

{[%evp 8,57,14,25,43,31,32767,32767,23,-4,45,40,79,64,109,26,17,-33,-26,-18,-21,-39,-25,-112,-92,-175,-159,-160,-168,-228,-15,-25,32767,32767,128,32767,102,123,123,78,75,69,32767,32767,32767,32767,32767,32767,32767,312,1198,1516]} 1. e4 {[%emt 0:00:00]} c5 {[%emt 0:00:05]} 2. Nf3 {[%emt 0:00:00]} Nc6 {[%emt 0:00:23]} 3. d4 {[%emt 0:00:00]} cxd4 {[%emt 0:00:05]} 4. Nxd4 {[%emt 0:00:00]} e6 {[%emt 0:00:06]} 5. Nc3 {[%emt 0:00:21]} Qc7 {[%emt 0:00:25]} 6. Be2 {[%emt 0:02:35]} a6 {[%emt 0:02:17]} 7. O-O {[%emt 0:00:24]} Nf6 {[%emt 0:02:22]} 8. Bg5 {[%emt 0:03:45]} Bb4 {[%emt 0:05:10] B47: Sicilian: Taimanov: 5 Nc3 Qc7 6 f4, 6 g3 and 6 Be2} 9. Nxc6 {[%emt 0:05:48]} bxc6 {[%emt 0:24:27]} 10. Qd4 {[%emt 0:06:19]} Bd6 {[%emt 0:03:59] LiveBook: 3 Games} 11. g3 $146 {[%emt 0:29:26]} ({Predecessor:} 11. f4 $16 e5 12. Qd2 exf4 13. Bxf4 Bxf4 14. Rxf4 d6 15. Rd1 Ke7 16. Rf3 {0-1 (82) Pogonina,N (2445)-Hou,Y (2671) Monaco 2015}) 11... Be5 {[%emt 0:07:13]} 12. Qd2 {[%emt 0:09:58]} O-O {[%emt 0:00:42]} 13. Bf3 {[%emt 0:00:58]} Rb8 {[%emt 0:02:31]} 14. Na4 {[%emt 0:02:09]} d5 {[%emt 0:01:47]} 15. exd5 {[%emt 0:01:26]} (15. Rad1 $11 {keeps the balance.}) 15... cxd5 {[%emt 0:00:37]} 16. Be3 {[%emt 0:03:15]} (16. Rfe1 $17 {is a better defense.}) 16... Bd7 {[%emt 0:02:42]} 17. Nc5 {[%emt 0:01:52]} Rxb2 {[%emt 0:02:36]} 18. Rab1 {[%emt 0:12:52]} (18. Rfb1 $17) 18... Bb5 $2 {[%emt 0:05:30]} (18... Rxa2 $19 19. Be2 Ne4 20. Nxe4 dxe4) 19. Rxb2 {[%emt 0:00:30]} Bxb2 {[%emt 0:00:24]} 20. c4 {[%emt 0:03:58]} d4 {[%emt 0:08:25]} (20... Bxc4 $11 {keeps the balance.} 21. Qxb2 Bxf1 22. Kxf1 Rb8) 21. Qxb2 {[%emt 0:00:04]} dxe3 {[%emt 0:00:28]} 22. cxb5 {[%emt 0:00:21]} Qxc5 {[%emt 0:00:16]} 23. bxa6 {[%emt 0:01:15]} (23. b6 $142) 23... Nd5 $1 {[%emt 0:01:07]} 24. fxe3 {[%emt 0:05:39]} Qxe3+ {[%emt 0:00:49]} 25. Qf2 {[%emt 0:00:47]} Qa3 {[%emt 0:10:30]} 26. a7 {[%emt 0:00:56]} Ra8 {[%emt 0:12:26]} 27. Bxd5 {[%emt 0:00:31]} exd5 {[%emt 0:00:06]} 28. Qxf7+ {[%emt 0:00:12]} Kh8 {[%emt 0:00:01]} 29. Re1 $18 {[%emt 0:05:28]} Qc5+ {[%emt 0:02:08]} 30. Kg2 {[%emt 0:00:01]} Qc6 {[%emt 0:00:18]} 31. Re6 {[%emt 0:02:15]} Qc2+ {[%emt 0:00:28]} 32. Kh3 {[%emt 0:00:09]} Qc8 {[%emt 0:00:16]} 33. Kh4 {[%emt 0:00:52]} Qg8 {[%emt 0:02:36]} 34. Re7 {[%emt 0:00:59]} d4 {[%emt 0:00:41]} 35. Qxg8+ {[%emt 0:00:49]} Kxg8 {[%emt 0:00:07]} 36. Rb7 {[%emt 0:00:15]} 1-0

[Event "OBEM 2018"]
[Site "Bremen"]
[Date "2018.03.31"]
[Round "9"]
[White "Hoeffer, David"]
[Black "Margraf, Daniel"]
[Result "0-1"]
[WhiteElo "2264"]
[BlackElo "2200"]
[Annotator "RC"]
[PlyCount "92"]
[EventDate "2018.??.??"]
[EventType "swiss"]
[EventCountry "GER"]
[SourceTitle "playchess.com"]
[Source "ChessBase"]
[SourceQuality "1"]
[TimeControl "40/5400+30:1800+30"]

1. Nf3 {[%emt 0:00:00]} Nf6 {[%emt 0:01:29]} 2. c4 {[%emt 0:00:19]} c5 {[%emt 0:01:53]} 3. d4 {[%emt 0:01:03]} cxd4 {[%emt 0:02:09]} 4. Nxd4 {[%emt 0:00:06]} g6 {[%emt 0:02:41]} 5. Nc3 {[%emt 0:00:06]} Bg7 {[%emt 0:00:51]} 6. e4 {[%emt 0:00:13]} d6 {[%emt 0:01:50]} 7. Be2 {[%emt 0:00:05]} Nc6 {[%emt 0:01:43]} 8. Nc2 {[%emt 0:00:05]} O-O {[%emt 0:00:40]} 9. O-O {[%emt 0:00:05]} Be6 {[%emt 0:04:03]} 10. Be3 {[%emt 0:01:39]} Rc8 {[%emt 0:02:13]} 11. Rc1 {[%emt 0:01:47]} Ne5 {[%emt 0:06:36]} 12. b3 {[%emt 0:01:17]} a6 {[%emt 0:01:58]} 13. Qd2 {[%emt 0:01:11]} Re8 {[%emt 0:01:46]} 14. f3 {[%emt 0:01:25]} Qa5 {[%emt 0:02:42]} 15. Nd4 {[%emt 0:03:30]} Bd7 {[%emt 0:03:17]} 16. Rfd1 {[%emt 0:02:24]} Nc6 {[%emt 0:01:12]} 17. Nc2 {[%emt 0:03:58]} Ne5 {[%emt 0:02:40]} 18. Kh1 {[%emt 0:09:55]} b5 {[%emt 0:05:47]} 19. b4 {[%emt 0:00:43]} Qc7 {[%emt 0:00:59]} 20. c5 {[%emt 0:05:45]} dxc5 {[%emt 0:03:24]} 21. Bxc5 {[%emt 0:00:14]} Be6 {[%emt 0:01:48]} 22. Ne3 {[%emt 0:01:57]} Bh6 {[%emt 0:06:27]} 23. Qe1 {[%emt 0:06:55]} Nc4 {[%emt 0:03:40]} 24. Bxc4 {[%emt 0:04:54]} Bxc4 {[%emt 0:01:51]} 25. Rc2 {[%emt 0:00:22]} Bf4 {[%emt 0:04:53]} 26. Nxc4 {[%emt 0:03:38]} bxc4 {[%emt 0:00:12]} 27. g3 {[%emt 0:00:36]} Bd6 {[%emt 0:01:24]} 28. Bxd6 {[%emt 0:02:18]} exd6 {[%emt 0:00:06]} 29. Qd2 {[%emt 0:00:08]} Re6 {[%emt 0:03:22]} 30. Qd4 {[%emt 0:01:54]} Qb7 {[%emt 0:00:50]} 31. a3 {[%emt 0:00:35]} Nd7 {[%emt 0:02:34]} 32. Nd5 {[%emt 0:02:23]} Ne5 {[%emt 0:00:55]} 33. Kg2 {[%emt 0:00:46]} Qb5 {[%emt 0:03:30]} 34. Qc3 {[%emt 0:03:09]} Rc6 {[%emt 0:02:45]} 35. h4 {[%emt 0:05:26]} h5 {[%emt 0:01:19]} 36. Nf4 {[%emt 0:01:32]} Re8 {[%emt 0:02:03]} 37. Rcd2 {[%emt 0:03:51]} Nd3 {[%emt 0:08:18]} 38. Nd5 {[%emt 0:03:09]} Re6 {[%emt 0:01:15]} 39. g4 {[%emt 0:09:49]} hxg4 {[%emt 0:04:25]} 40. fxg4 {[%emt 0:00:29]} Re5 {[%emt 0:34:26]} 41. Qd4 {[%emt 0:32:33]} Rxd5 {[%emt 0:00:00]} 42. exd5 {[%emt 0:00:00]} Rc8 {[%emt 0:00:00]} 43. h5 {[%emt 0:00:00]} Ne5 {[%emt 0:00:00]} 44. Rc1 {[%emt 0:00:00]} Qa4 {[%emt 0:00:00]} 45. Rc3 {[%emt 0:00:00]} a5 {[%emt 0:00:00]} 46. hxg6 {[%emt 0:00:00]} Nxg6 {[%emt 0:00:00]} 0-1

[Event "OBEM 2018"]
[Site "Bremen"]
[Date "2018.03.31"]
[Round "9"]
[White "Kardoeus, David"]
[Black "Mueller, Wolfgang"]
[Result "1-0"]
[ECO "C03"]
[WhiteElo "2229"]
[BlackElo "2023"]
[Annotator "NA RC"]
[PlyCount "87"]
[EventDate "2018.??.??"]
[EventType "swiss"]
[EventCountry "GER"]
[SourceTitle "playchess.com"]
[Source "ChessBase"]
[SourceQuality "1"]
[TimeControl "40/5400+30:1800+30"]

1. e4 {[%emt 0:08:47]} e6 {[%emt 0:00:06]} 2. d4 {[%emt 0:00:23]} d5 {[%emt 0:00:05]} 3. Nd2 {[%emt 0:00:25]} a6 {[%emt 0:00:08]} 4. Bd3 {[%emt 0:01:15]} c5 {[%emt 0:00:28]} 5. Ngf3 {[%emt 0:01:07]} dxe4 {[%emt 0:03:59]} 6. Nxe4 {[%emt 0:01:12]} cxd4 {[%emt 0:00:23]} 7. Nxd4 {[%emt 0:04:35]} Bd7 {[%emt 0:00:10]} 8. Qe2 {[%emt 0:13:45]} Nc6 {[%emt 0:02:28]} 9. Nf5 {[%emt 0:05:43]} Bb4+ {[%emt 0:08:37]} 10. c3 {[%emt 0:02:04]} exf5 {[%emt 0:01:23]} 11. Nd6+ {[%emt 0:02:26]} Kf8 {[%emt 0:00:07]} 12. cxb4 {[%emt 0:01:11]} Qf6 {[%emt 0:10:32]} 13. Be3 {[%emt 0:14:15]} Qxd6 {[%emt 0:11:55]} 14. Bc5 {[%emt 0:00:54]} Qxc5 {[%emt 0:00:01]} 15. bxc5 {[%emt 0:00:21]} Re8 {[%emt 0:00:03]} 16. O-O-O {[%emt 0:04:45]} Rxe2 {[%emt 0:00:16]} 17. Bxe2 {[%emt 0:00:11]} Be6 {[%emt 0:05:08]} 18. Rd6 {[%emt 0:03:15]} Nge7 {[%emt 0:01:39]} 19. Rhd1 {[%emt 0:02:35]} g6 {[%emt 0:00:11]} 20. a3 {[%emt 0:01:24]} a5 {[%emt 0:01:55]} 21. Kc2 {[%emt 0:02:26]} Kg7 {[%emt 0:01:17]} 22. Kc3 {[%emt 0:00:54]} Rc8 {[%emt 0:06:58]} 23. Bc4 {[%emt 0:01:11]} Ne5 {[%emt 0:11:55]} 24. Bxe6 {[%emt 0:01:40]} fxe6 {[%emt 0:01:21]} 25. b4 {[%emt 0:03:15]} Nd5+ {[%emt 0:01:42]} 26. Kd4 {[%emt 0:13:37]} Nc6+ {[%emt 0:06:59]} 27. Kc4 {[%emt 0:00:11]} Ne5+ {[%emt 0:08:54]} 28. Kb5 {[%emt 0:00:45]} Nc3+ {[%emt 0:00:58]} 29. Kb6 {[%emt 0:00:10]} Nxd1 {[%emt 0:02:19]} 30. Kxb7 {[%emt 0:00:51]} Re8 {[%emt 0:00:55]} 31. Rxd1 {[%emt 0:00:25]} Re7+ {[%emt 0:02:08]} 32. Kb6 {[%emt 0:01:41]} Nc4+ {[%emt 0:02:42]} 33. Kb5 {[%emt 0:00:35]} Nxa3+ {[%emt 0:00:12]} 34. Kxa5 {[%emt 0:00:20]} e5 {[%emt 0:00:44]} 35. b5 {[%emt 0:02:08]} Nc2 {[%emt 0:05:23]} 36. b6 {[%emt 0:01:17]} Nd4 {[%emt 0:00:15]} 37. Ka6 {[%emt 0:00:24]} Ne6 {[%emt 0:03:46]} 38. c6 {[%emt 0:00:56]} e4 {[%emt 0:00:33]} 39. b7 {[%emt 0:02:03]} Nc5+ {[%emt 0:00:24]} 40. Kb6 {[%emt 0:00:17]} Nxb7 {[%emt 0:30:36]} 41. cxb7 {[%emt 0:30:09]} Rxb7+ {[%emt 0:00:04]} 42. Kxb7 {[%emt 0:00:05]} Kf6 {[%emt 0:00:02]} 43. Kc6 {[%emt 0:00:44]} Ke5 {[%emt 0:00:12]} 44. Kc5 {[%emt 0:03:25]} 1-0